Cogmind - Beta 9.4 @@@ ROGUE MODE // 2020.03.12 @ 20:56:44 Player: PlasticHeart Result: Destroyed by S-10 Pest with Light Assault Rifle Performance ------------- Evolutions (1) 500 Regions Visited (3) 600 Robots Destroyed (62) 310 Value Destroyed (1548) 1548 Prototype IDs (5) 100 Alien Tech Used (0) 0 Bonus (138) 138 TOTAL SCORE: 3196 Bonus ------- High Alert Combat Kills 14 Follower Combat Kills 124 Cogmind --------- Core Integrity 0/400 Matter 300/300 Energy 160/160 System Corruption 0% Temperature Cool (0) Movement Rolling (110) Ox1 Location -9/Storage Parts ------- > --- POWER (1) -------- Light Nuclear Core > --- PROPULSION (3) --- Compact Wheel Compact Wheel Compact Wheel > --- UTILITY (3) ------ Medium Storage Unit Medium Storage Unit High-capacity Storage Unit > --- WEAPON (2) ------- Improved EM Shotgun Autogun > --- INVENTORY (20) --- Light Ion Engine Light Nuclear Core Light Nuclear Core Compact Wheel Compact Wheel Compact Wheel Improved Heat Sink Large Matter Pod (150) High-capacity Matter Pod (200) Beam Cannon Beam Cannon Beam Cannon Heavy Assault Rifle EMP Blaster Grenade Launcher Hammer Peak State ------------ > --- POWER ------------ Heavy Ion Engine > --- PROPULSION ------- Wheel Compact Wheel Compact Wheel > --- UTILITY ---------- Medium Storage Unit Medium Storage Unit High-capacity Storage Unit > --- WEAPON ----------- Improved EM Shotgun Improved EM Shotgun > --- INVENTORY -------- Light Ion Engine Improved Ion Engine Light Nuclear Core Light Nuclear Core Light Nuclear Core Improved Heat Sink Large Matter Pod High-capacity Matter Pod Beam Cannon Beam Cannon Beam Cannon Heavy Assault Rifle Autogun EMP Blaster Grenade Launcher Hammer [Rating: 17] Favorites ----------- Power Heavy Ion Engine Engine Heavy Ion Engine Power Core Light Nuclear Core Propulsion Compact Wheel Treads Light Treads Wheel Compact Wheel Utility Medium Storage Unit Storage Medium Storage Unit Weapon Light Assault Rifle Energy Gun Improved EM Shotgun Energy Cannon Beam Cannon Ballistic Gun Light Assault Rifle Impact Weapon Hammer Build | -11 -10 -9 -9 ------- Run | Scr Mat Mat Sto Slots Evolved 2 | . . 2 . Power . | . . . . Propulsion 1 | . . 1 . Utility 1 | . . 1 . Weapon . | . . . . Parts Attached 53 | 6 6 24 17 Power 7 | 1 1 3 2 Engine 6 | 1 1 3 1 Core 1 | . . . 1 Reactor . | . . . . Propulsion 22 | 2 2 9 9 Treads 3 | . . . 3 Leg . | . . . . Wheel 19 | 2 2 9 6 Hover . | . . . . Flight . | . . . . Utility 4 | 1 2 1 . Device . | . . . . Storage 4 | 1 2 1 . Processor . | . . . . Hackware . | . . . . Protection . | . . . . Artifact . | . . . . Weapon 20 | 2 1 11 6 Energy Gun 2 | . . . 2 Energy Cannon 4 | . . 3 1 Ballistic Gun 11 | 2 1 6 2 Ballistic Cannon . | . . . . Launcher . | . . . . Special Weapon . | . . . . Impact Weapon 3 | . . 2 1 Slashing Weapon . | . . . . Piercing Weapon . | . . . . Special Melee Weapon . | . . . . Unidentified Prototypes . | . . . . Parts Lost 16 | . 2 8 6 Power 2 | . . 1 1 Propulsion 8 | . 1 4 3 Utility . | . . . . Weapon 6 | . 1 3 2 Highest Loss Streak 3 | . 1 3 3 Average Slot Usage (%) 97 | . 93 99 97 Engine 11 | . 14 11 10 Treads 6 | . . . 18 Wheel 24 | . 26 32 12 Storage 31 | . 23 33 33 Energy Gun 2 | . . . 8 Energy Cannon 3 | . . 4 2 Ballistic Gun 16 | . 28 17 9 Naked Turns . | . . . . Heaviest Build 62 | 9 47 62 62 Greatest Support 60 | 26 26 48 60 Greatest Overweight (x) 3 | . 1 1 3 Average Overweight (x) . | . . 1 . Largest Inventory Capacity 20 | 6 16 20 20 Average Capacity 17 | 5 9 19 20 Most Carried 20 | 6 16 20 19 Average Carried 15 | 2 8 17 16 Final Capacity 20 | 6 16 20 20 Final Carried 17 | 2 16 17 16 Class Distribution -------------------- 58% | Hauler-Mutant 19% | Mutant 12% | Commander-Mutant 9% | Scavenger-Mutant Dominant Class ---------------- Mutant | -10/Materials Hauler-Mutant | -9/Materials Commander-Mutant | -9/Storage Resources | -11 -10 -9 -9 ----------- Run | Scr Mat Mat Sto Matter Collected 2031 | 241 277 1140 373 Remotely . | . . . . Salvage Created 2995 | . 373 1637 985 Parts 175 | . 20 92 63 Haulers Intercepted 7 | . 1 2 4 Recyclers Shooed 16 | . 4 10 2 Parts Field Recycled . | . . . . Retrieved Matter . | . . . . Parts Self-Destructed . | . . . . Prevented . | . . . . Kills | -11 -10 -9 -9 ------- Run | Scr Mat Mat Sto Combat Hostiles Destroyed 38 | . 4 21 13 Guns 28 | . 4 13 11 Cannons 10 | . . 8 2 Classes Destroyed 10 | . 3 7 . Worker 3 | . . 2 1 Hauler 7 | . 1 2 4 Recycler 10 | . 2 6 2 Operator 1 | . . 1 . Watcher 3 | . . 2 1 Swarmer 4 | . . 1 3 Grunt 21 | . 4 14 3 Brawler 1 | . . 1 . Duelist 1 | . . 1 . Sentry 11 | . . 4 7 Best Kill Streak 6 | . 3 6 5 Combat Bots Only 6 | . 2 6 3 Max Kills in Single Turn 2 | . 1 2 2 Gunslinging . | . . . . Exploded . | . . . . Melee . | . . . . Uniques/NPCs Destroyed . | . . . . Combat | -11 -10 -9 -9 -------- Run | Scr Mat Mat Sto Damage Taken 2488 | . 323 1216 949 Core 440 | . 40 248 152 Absorbed by Shields . | . . . . Core Remaining (%) 92 | 100 84 . . Volleys Fired 225 | . 36 133 56 Largest 2 | . 2 2 2 Hottest 90 | . 40 83 90 Shots Fired 449 | . 72 266 111 Gun 383 | . 72 223 88 Cannon 66 | . . 43 23 Launcher . | . . . . Special . | . . . . Kinetic 346 | . 72 223 51 Thermal 66 | . . 43 23 Explosive . | . . . . Electromagnetic 37 | . . . 37 Robot Hit Streak 20 | . 13 8 20 Robot Miss Streak 9 | . 2 9 3 Penetration Max . | . . . . Secondary Targets 5 | . 1 1 3 Max Gunslinging Chain 1 | . 1 1 1 Shots Hit Robots 303 | . 54 158 91 Core Hits 120 | . 21 65 34 Critical Hits 2 | . 1 . 1 Critical Kills 2 | . 1 . 1 Critical Parts Destroyed . | . . . . Melee Attacks 41 | . . 8 33 Impact 41 | . . 8 33 Slashing . | . . . . Piercing . | . . . . Sneak Attacks 2 | . . 1 1 Combat Hostiles . | . . . . Follow-up Attacks . | . . . . Damage Inflicted 3765 | . 427 1902 1436 Guns 2834 | . 427 1415 992 Cannons 770 | . . 436 334 Explosions 41 | . . . 41 Melee 120 | . . 51 69 Ramming . | . . . . Kinetic 2322 | . 427 1415 480 Thermal 811 | . . 436 375 Explosive . | . . . . Electromagnetic 512 | . . . 512 Impact 120 | . . 51 69 Slashing . | . . . . Piercing . | . . . . Highest Corruption . | . . . . Average Corruption . | . . . . Corruption Purged . | . . . . Overload Shots . | . . . . Overflow Damage . | . . . . Projectiles . | . . . . Explosions . | . . . . Melee . | . . . . Knockbacks . | . . . . Impact . | . . . . Kinetic . | . . . . Secondary . | . . . . Self-Inflicted Damage . | . . . . Shots . | . . . . Rammed . | . . . . Targets Rammed . | . . . . Kicked . | . . . . Crushed . | . . . . Highest Temperature 307 | . 30 307 260 Average Temperature 73 | . 13 94 63 Received Heat Transfer 972 | . 177 471 324 Siege Activations . | . . . . Robots Corrupted . | . . . . Combat Hostiles . | . . . . Parts Fried 3 | . . . 3 Impact Corruptions . | . . . . Robots Melted . | . . . . Combat Hostiles . | . . . . Parts Melted 1 | . . . 1 Heat Transferred 1678 | . . 925 753 Parts Sabotaged . | . . . . Parts Stolen . | . . . . Parts Stripped . | . . . . Power Chain Reactions 1 | . . . 1 Missiles Intercepted . | . . . . Alert | -11 -10 -9 -9 ------- Run | Scr Mat Mat Sto Peak Influence 484 | . 159 225 484 Average Influence 150 | . 57 83 299 Maximum Alert Level 2 | . . 1 2 Low Security (%) 69 | 100 100 93 17 Level 1 25 | . . 6 65 Level 2 5 | . . . 16 Level 3 . | . . . . Level 4 . | . . . . Level 5 . | . . . . High Security . | . . . . Max Security . | . . . . Squads Dispatched 3 | . . 2 1 Investigation . | . . . . Extermination . | . . . . Reinforcement 2 | . . 2 . Assault . | . . . . Garrison 1 | . . . 1 Intercept . | . . . . Construction Impeded . | . . . . Haulers Reinforced . | . . . . Stealth | -11 -10 -9 -9 --------- Run | Scr Mat Mat Sto Distress Signals 5 | . 1 4 . Communications Jammed . | . . . . Distress Signals . | . . . . Times Spotted 62 | . 5 32 25 Peak Tracking Total 7 | . 3 7 4 Tactical Retreats 4 | . . 2 2 Traps | -11 -10 -9 -9 ------- Run | Scr Mat Mat Sto Traps Triggered 1 | . . . 1 Indirectly . | . . . . Trap Hack Attempts . | . . . . Triggered . | . . . . Disarmed . | . . . . Reprogrammed . | . . . . Reused . | . . . . Traps Extracted . | . . . . Installed . | . . . . Triggered . | . . . . Machines | -11 -10 -9 -9 ---------- Run | Scr Mat Mat Sto Machines Disabled 1 | . . . 1 Max in Single Turn 1 | . . . 1 Garrison Access 1 | . . . 1 Machines Sabotaged . | . . . . Garrisons Compromised . | . . . . Overloaded Fab Kills . | . . . . Fab Network Shutdowns . | . . . . Hacking | -11 -10 -9 -9 --------- Run | Scr Mat Mat Sto Machines Accessed 15 | . 3 6 6 Terminals 14 | . 3 6 5 Fabricators . | . . . . Repair Stations . | . . . . Recycling Units . | . . . . Scanalyzers . | . . . . Garrison Access 1 | . . . 1 Total Hacks 38 | . 7 17 14 Successful 25 | . 5 10 10 Failed 13 | . 2 7 4 Catastrophic 2 | . . 1 1 Database Lockouts . | . . . . Manual 17 | . 2 9 6 Terminals 37 | . 7 17 13 Fabricators . | . . . . Repair Stations . | . . . . Recycling Units . | . . . . Scanalyzers . | . . . . Garrison Access 1 | . . . 1 Terminal Hacks 15 | . 3 7 5 Part Schematic 1 | . . . 1 Prototype ID Bank 2 | . 1 1 . Branch Access Points 1 | . . 1 . Alert Level 4 | . . 2 2 Unreport Threat 1 | . . 1 . Locate Traps 2 | . 1 1 . Hauler Manifests 1 | . . 1 . Zone Layout 3 | . 1 . 2 Fabricator Hacks . | . . . . Repair Station Hacks . | . . . . Recycling Unit Hacks . | . . . . Scanalyzer . | . . . . Garrison Access Hacks 1 | . . . 1 Seal Access 1 | . . . 1 Unauthorized Hacks 22 | . 4 9 9 Terminals 9 | . 2 3 4 Track 5 | . 1 2 2 Botnet 4 | . 1 1 2 Fabricators . | . . . . Repair Stations . | . . . . Recycling Units . | . . . . Scanalyzers . | . . . . Garrison Access . | . . . . Data Cores Recovered . | . . . . Used . | . . . . Hacking Detections 10 | . 2 4 4 Full Trace Events . | . . . . Feedback Events . | . . . . Feedback Blocked . | . . . . Robot Schematics Acquired . | . . . . Robots Built . | . . . . Matter . | . . . . Time . | . . . . Total Robot Build Rating . | . . . . Part Schematics Acquired 1 | . . . 1 Parts Built . | . . . . Matter . | . . . . Time . | . . . . Total Part Build Rating . | . . . . Parts Repaired . | . . . . Time . | . . . . Parts Recycled . | . . . . Recycled Matter . | . . . . Retrieved Matter . | . . . . Retrieved Components . | . . . . Parts Scanalyzed . | . . . . Part Schematics Acquired . | . . . . Parts Damaged . | . . . . Bothacking | -11 -10 -9 -9 ------------ Run | Scr Mat Mat Sto Used RIF Installer . | . . . . Robots Hacked . | . . . . Non-combat . | . . . . Combat . | . . . . Robot Hacks Applied . | . . . . Relay Couplers Released . | . . . . Robots Rewired . | . . . . Allies Hacked . | . . . . Hacks Repelled . | . . . . Allies | -11 -10 -9 -9 -------- Run | Scr Mat Mat Sto Total Allies 10 | . . . 10 Largest Group 10 | . . . 10 Highest-Rated Group 88 | . . . 88 Highest-Rated Ally 16 | . . . 16 Total Orders . | . . . . Ally Attacks 41 | . . . 41 Total Damage 385 | . . . 385 Kills 5 | . . . 5 Allies Corrupted . | . . . . Allies Melted . | . . . . Intel | -11 -10 -9 -9 ------- Run | Scr Mat Mat Sto Robot Analysis Total . | . . . . Derelict Logs Recovered . | . . . . Drone Launches . | . . . . Drone Recoveries . | . . . . Exploration | -11 -10 -9 -9 ------------- Run | Scr Mat Mat Sto Turns Passed 2304 | 37 419 1068 780 Spaces Moved 1238 | 33 311 580 314 Core 12 | 12 . . . Treads 144 | . . . 144 Legs . | . . . . Wheels 1082 | 21 311 580 170 Hover . | . . . . Flight . | . . . . Fastest Speed 50 | 50 90 96 96 Average Speed 106 | 73 91 100 136 Slowest Speed 220 | 90 100 110 220 Overloaded Moves . | . . . . Propulsion Burnouts . | . . . . Robots Hopped . | . . . . Cave-ins Triggered . | . . . . Exploration Rate (%) 35 | 4 39 56 44 Regions Visited 3 Branch Regions 1 Pre-discovered Areas . | . . . . Known Exits Taken 1 | . . 1 . Unknown Exits Taken 2 | 1 1 . . Scrap Searched . | . . . . Spaces Dug 3 | . . 1 2 Terrain Destroyed 7 | . . 1 6 Melee 3 | . . 1 2 Projectile . | . . . . AOE 4 | . . . 4 Actions | -11 -10 -9 -9 --------- Run | Scr Mat Mat Sto Total 1777 | 44 387 834 512 Wait 135 | . 13 51 71 Move 1235 | 32 310 579 314 Hop . | . . . . Pick Up 51 | 6 18 21 6 Fast Attach 12 | 2 1 3 6 Attach 23 | 4 2 10 7 Detach . | . . . . Swap 18 | . 3 11 4 Drop 29 | . 4 18 7 Fire 225 | . 36 133 56 Melee 41 | . . 8 33 Ram . | . . . . Kick . | . . . . Crush . | . . . . Escape Stasis 8 | . . . 8 Rewire . | . . . . Trap . | . . . . Miscellaneous . | . . . . Route ------- -11/Scrapyard -10/Materials -9/Materials (discovered 5 exits: [*Mat] / *Min x2 / *Sto x2) -9/Storage History --------- Turn | Location | Event 10 | -11/Scrapyard | Discovered new exit (range 16) 38 | -11/Scrapyard | Entered Materials 319 | -10/Materials | Build established: Mutant 388 | -10/Materials | Discovered new exit (range 13) 457 | -10/Materials | Entered another Materials area 457 | -9/Materials | Evolved 2 slots: Propulsion x1, Utility x1 459 | -9/Materials | Discovered new exit (range 15) 756 | -9/Materials | Build established: Hauler-Mutant 1280 | -9/Materials | Identified exit to Mines 1280 | -9/Materials | Identified exit to Storage 1313 | -9/Materials | Discovered new exit (range 4) 1455 | -9/Materials | Core integrity fell below 50% 1487 | -9/Materials | Lost 3 parts (1n2w) 1525 | -9/Materials | Entered Storage 1728 | -9/Storage | Lost 3 parts (2n1w) 1770 | -9/Storage | Core integrity fell below 20% 1788 | -9/Storage | Lost 3 parts (1p1n1w) 2018 | -9/Storage | Assisted by bots powering up and referring to "LRC-V3" 2111 | -9/Storage | Garrison activated, responded to threat 2305 | -9/Storage | Destroyed by S-10 Pest with Light Assault Rifle Last Messages --------------- Awaiting botnet instructions. 02189_ K-01 Serf collects debris. 02242_ Dropped Lgt. Treads. 02242_ Acquired Com. Wheel. 02245_ K-01 Serf collects debris. 02245_ Dropped Lgt. Treads. 02245_ Acquired Com. Wheel. 02248_ Dropped Lgt. Treads. 02248_ Acquired Com. Wheel. 02251_ K-01 Serf collects debris. 02251_ Dropped Imp. Ion Engine. 02253_ Acquired Com. Wheel. 02255_ K-01 Serf collects debris. 02281_ Acquired 11 matter. 02289_ A-02 Transporter destroyed. 02297_ Acquired 7 matter. 02300_ K-01 Serf cleans the Repair Station. 02303_ Acquired 30 matter. 02305_ K-01 Serf cleans the Repair Station. 02305_ S-10 Pest unfolds itself. Map ----- +----------------------------------------------------+ | ?????????# """ # ##+#####+###? | | ?????????# """ # # # #? | | ?????????# """ + + [[ "# #? | | ?????????# #%* # [! T# #? | | ?????????# #[= [# "# #? | | ?????????# # [!%+ # #? | | ?????????####+###k[=*# # #? | | ???????????# ##!!%!## "# # #? | | ???????????# %!%[=%##"R"#### ##? | | ???????????# ##+##+##"""#??###?? | | ???????????## ##*!%!=*#########??? | | ????????????# ##[%===*#?# #??? | | ????????????# ##""%[=/#?# ! #??? | | ????????????#u##"T%[%/###T %%=#??? | | ????#########u##""[=/ ###==%##??? | | ????# ## ## ######/##??? | | ????# # ############= #### | | ????# + ss aa[*T =[ | | ????# # = ksu ##[=k#### | | ????# # !**|! """#######?? | | ????# #= *%*!] R"# #?? | | ??#######+## !**! """# """#?? | | # ! !# * # """#?? | | # ![ + !g + """##? | | # [ #*%! ######### # """##? | | ?########@###+##### # # """##? | | # """ ##g## # + + ##? | | # """ #!gg# # #+########? | | # """ +g!g# # # #???##? | | # #!g*# ??? #??????????????? | | # ## ##???? #??????????????? | | # ??# #????? ???????????????? | | ######### ##???#+########????????? | | ???? # ##### # #????????? | | # """" + ! ! / #????????? | | # """" # # #????????? | | # """" # """ # #????????? | | # """" # "G" + #????????? | | # # " " # #????????? | | ######+# ########????????? | | # # ########????????? | | # ] + ### # """ #????????? | | # #+##/#?# # """ #????????? | | # % # ### # """ #????????? | | #] # "## # #????????? | | # ] #% T## # #????????? | | # # "## + #????????? | | # # ###+##+########????????? | | # #" ## [!%=#??????????? | | ######T ## =]=[##??????????? | +----------------------------------------------------+ Best States ------------- Heat Dissipation 28 Energy Generation 14 Energy Capacity 280 Matter Stores 300 Matter Capacity 300 Sight Range 16 Terrain Scan Density 10 Evasion (%) 50 Recoil Reduction 3 Item Schematics ----------------- EM Shotgun | -9/Storage | Hacked Robot Schematics ------------------ None Fabricated ------------ Nothing Alien Tech Used ----------------- None Achievements -------------- None Challenges ------------ None Game ------ Seed VortexSpikedKit Manual? 0 Play Time 00:30:18 Cumulative 689.5 hours Start 2020.03.12 @ 20:33:37 End 2020.03.12 @ 20:56:44 Sessions 1 Manual Loads 0 Difficulty Rogue Special Mode None Game No. 379 Rogue 379 Adventurer 0 Explorer 0 Win Type - Total 53 Types 30/2/12/5/1/1/2 Lore% 90 Gallery% 86 Achievement% 73 Wizard Run 0 Options --------- ASCII 0 Keyboard 0 Movement Mouse Keybinds 0 Fullscreen 0 Font 32/Smallcaps Map View 76x50 Tactical HUD 1 Map Filters NONE Filters NONE Steam 0 RUN: b6afd438-5e0e-4ca2-a2c5-a32bff811896